bitfinex/quotes_BTCUSD_20250224
["timestamp","ask_amount","ask_price","bid_price","bid_amount"]
[1740396865391,0.0008496,95854.0,95853.0,0.22904569]
[1740396865818,0.1573366,95854.0,95853.0,0.1304]
[1740396866028,0.0008496,95854.0,95853.0,0.1304]
[1740396866499,0.0008496,95854.0,95853.0,0.1264]
[1740396866735,0.0008496,95854.0,95853.0,0.1254]
[1740396866948,0.0008496,95854.0,95853.0,0.1284]
[1740396868548,0.0008496,95854.0,95853.0,0.38753469]
[1740396876353,0.0008496,95854.0,95853.0,0.38153469]
[1740396876501,0.0008496,95854.0,95853.0,0.38553469]
[1740396876698,0.0008496,95854.0,95853.0,0.38953469]
[1740396883973,0.0008496,95854.0,95853.0,0.39123389]
[1740396885572,0.0008496,95854.0,95853.0,0.71263389]
[1740396885774,0.0008496,95854.0,95853.0,0.86263389]
[1740396886360,0.0008496,95854.0,95853.0,0.85863389]
[1740396886723,0.0008496,95854.0,95853.0,0.86563389]
[1740396887735,0.0008496,95854.0,95853.0,0.86163389]
[1740396887901,0.0008496,95854.0,95853.0,0.86863389]
[1740396891576,0.0008496,95854.0,95853.0,0.71863389]
[1740396891786,0.0008496,95854.0,95853.0,0.56214489]
[1740396892031,0.0008496,95854.0,95853.0,0.71863389]
[1740396911481,0.0008496,95854.0,95853.0,0.86863389]
[1740396912089,0.0008496,95854.0,95853.0,0.85463389]
[1740396912331,0.0008496,95854.0,95853.0,0.86163389]
[1740396913364,0.0008496,95854.0,95853.0,0.86863389]
[1740396940110,0.0008496,95854.0,95853.0,0.88955709]
[1740396940780,0.1429191,95880.0,95853.0,0.73306809]
[1740396940987,0.156448,95879.0,95867.0,0.156466]
[1740396941191,0.14296224,95880.0,95868.0,0.25910969]
[1740396941394,0.14296224,95880.0,95868.0,0.10264569]
[1740396941599,0.29940824,95880.0,95868.0,0.10264569]
[1740396942336,0.14296224,95880.0,95868.0,0.10264569]
[1740396942534,0.14296224,95880.0,95868.0,0.10664569]
[1740396942671,0.29940724,95880.0,95868.0,0.10664569]
[1740396943273,0.31178399,95880.0,95868.0,0.10264569]
[1740396943483,0.31178399,95880.0,95868.0,0.10664569]
[1740396943791,0.01241989,95880.0,95869.0,0.156463]
[1740396943968,0.01241989,95880.0,95870.0,0.10264569]
[1740396944384,0.15533899,95880.0,95870.0,0.10264569]
[1740396944563,0.31178499,95880.0,95870.0,0.10264569]
[1740396945388,0.31178499,95880.0,95870.0,0.10664569]
[1740396946198,0.31178499,95880.0,95870.0,0.11064569]
[1740396951717,0.15533899,95880.0,95870.0,0.11064569]
[1740396951875,0.01241989,95880.0,95870.0,0.11064569]
[1740396952684,0.15533899,95880.0,95870.0,0.11064569]
[1740396952854,0.31178399,95880.0,95870.0,0.11234469]
[1740396953076,0.31263349,95880.0,95870.0,0.11234469]
[1740396953963,0.15618849,95880.0,95870.0,0.11234469]
[1740396954964,0.01326939,95880.0,95870.0,0.11234469]
[1740396955541,0.31263349,95880.0,95870.0,0.11234469]
[1740396956724,0.15618849,95880.0,95870.0,0.11234469]
[1740396957260,0.31263349,95880.0,95870.0,0.11234469]
[1740396958000,0.156447,95879.0,95870.0,0.11234469]
[1740396958198,0.15618849,95880.0,95870.0,0.11234469]
[1740396958199,0.31263449,95880.0,95870.0,0.11234469]
[1740396958611,0.31263349,95880.0,95870.0,0.11234469]
[1740396958774,0.31263349,95880.0,95870.0,0.10834469]
[1740396959235,0.31263349,95880.0,95870.0,0.11234469]
[1740396959409,0.15618849,95880.0,95870.0,0.10834469]
[1740396959613,0.01326939,95880.0,95870.0,0.10834469]
[1740396959931,0.01326939,95880.0,95870.0,0.11234469]
[1740396960542,0.15618849,95880.0,95870.0,0.11234469]
[1740396960755,0.31263449,95880.0,95870.0,0.11234469]
[1740396961119,0.156448,95879.0,95870.0,0.11234469]
[1740396961316,0.31263349,95880.0,95870.0,0.11234469]
[1740396961982,0.15618849,95880.0,95870.0,0.10834469]
[1740396962594,0.15618849,95880.0,95870.0,0.10434469]
[1740396963054,0.15618849,95880.0,95870.0,0.10834469]
[1740396963240,0.01326939,95880.0,95870.0,0.10834469]
[1740396963600,0.156447,95879.0,95870.0,0.10834469]
[1740396963872,0.156447,95879.0,95870.0,0.11234469]
[1740396964466,0.156447,95879.0,95870.0,0.10834469]
[1740396964667,0.31263349,95880.0,95870.0,0.10834469]
[1740396965026,0.31263349,95880.0,95870.0,0.10434469]
[1740396965431,0.31263349,95880.0,95870.0,0.10834469]
[1740396965663,0.31263349,95880.0,95870.0,0.10434469]
[1740396966058,0.31263349,95880.0,95870.0,0.11234469]
[1740396966237,0.01326939,95880.0,95870.0,0.11234469]
[1740396966990,0.16971539,95880.0,95870.0,0.11234469]
[1740396968128,0.01326939,95880.0,95870.0,0.11234469]
[1740396970316,0.22186539,95880.0,95870.0,0.11234469]
[1740396970538,0.01326939,95880.0,95870.0,0.11234469]
[1740396971101,0.16971539,95880.0,95870.0,0.11234469]
[1740396971712,0.01326939,95880.0,95870.0,0.11234469]
[1740396972009,0.16971539,95880.0,95870.0,0.11234469]
[1740396974360,0.15645,95878.0,95870.0,0.11234469]
[1740396974563,0.156447,95879.0,95870.0,0.11234469]
[1740396974977,0.15618849,95880.0,95870.0,0.11234469]
[1740396975342,0.156447,95879.0,95870.0,0.10834469]
[1740396975766,0.156447,95879.0,95870.0,0.10434469]
[1740396975975,0.156447,95879.0,95870.0,0.10834469]
[1740396976176,0.156447,95879.0,95870.0,0.11234469]
[1740396976400,0.15618849,95880.0,95870.0,0.10434469]
[1740396976575,0.31263449,95880.0,95870.0,0.10434469]
[1740396976735,0.31263449,95880.0,95870.0,0.11234469]
[1740396977318,0.31263449,95880.0,95870.0,0.10834469]
[1740396977569,0.31263449,95880.0,95870.0,0.11234469]
[1740396978173,0.31263449,95880.0,95870.0,0.10834469]
[1740396978346,0.156447,95879.0,95870.0,0.11234469]
[1740396979113,0.156447,95879.0,95870.0,0.10834469]
[1740396979343,0.156447,95879.0,95870.0,0.10434469]
[1740396979548,0.156447,95879.0,95870.0,0.11234469]
[1740396981107,0.156448,95878.0,95870.0,0.11234469]
[1740396981306,0.15618849,95880.0,95870.0,0.11234469]
[1740396981532,0.156447,95879.0,95870.0,0.11234469]
[1740396982103,0.156447,95879.0,95870.0,0.10834469]
[1740396982727,0.156447,95879.0,95870.0,0.10434469]
[1740396982953,0.156447,95879.0,95870.0,0.10834469]
[1740396983172,0.156447,95879.0,95870.0,0.11234469]
[1740396983360,0.156447,95879.0,95870.0,0.10834469]
[1740396983731,0.156447,95879.0,95870.0,0.11234469]
[1740396984154,0.15572863,95880.0,95870.0,0.11234469]
[1740396984358,0.156448,95879.0,95870.0,0.11234469]
[1740396984771,0.29864773,95880.0,95870.0,0.009699]
[1740396984979,0.15646,95871.0,95870.0,0.009699]
[1740396985189,0.15646,95871.0,95870.0,0.005699]
[1740396985388,0.30646,95871.0,95870.0,0.005699]
[1740396985598,0.34316,95871.0,95870.0,0.005699]
[1740396985837,0.34316,95871.0,95870.0,0.004699]
[1740396986043,0.35117555,95871.0,95870.0,0.001699]
[1740396986267,0.35117555,95871.0,95870.0,0.005699]
[1740396986437,0.35117555,95871.0,95870.0,0.004699]
[1740396986679,0.35117555,95871.0,95870.0,0.001699]
[1740396988108,0.35117555,95871.0,95853.0,0.0016992]
[1740396988109,0.156487,95854.0,95853.0,0.0016992]
[1740396989323,0.156487,95854.0,95853.0,0.0116992]
[1740396990067,0.156487,95854.0,95853.0,0.0066992]
[1740396991062,0.156487,95854.0,95853.0,0.0016992]
[1740396991453,0.156487,95854.0,95853.0,0.0066992]
[1740396991666,0.156487,95854.0,95853.0,0.0016992]
[1740396991872,0.156487,95854.0,95853.0,0.0096992]
[1740396992100,0.1429191,95863.0,95853.0,0.0096992]
[1740396992317,0.208636,95861.0,95853.0,0.0046992]
[1740396992558,0.156487,95854.0,95853.0,0.0046992]
[1740396992798,0.156487,95854.0,95853.0,0.0076992]
[1740396993240,0.156487,95854.0,95853.0,0.0046992]
[1740396994522,0.156487,95854.0,95853.0,0.0016992]
[1740396995048,0.2858382,95863.0,95853.0,0.0016992]
[1740396995317,0.156487,95854.0,95853.0,0.0046992]
[1740396997872,0.156487,95854.0,95853.0,0.0076992]
[1740396999233,0.156485,95856.0,95853.0,0.0076992]
[1740396999439,0.2858382,95863.0,95853.0,0.0076992]
[1740396999647,0.156483,95857.0,95853.0,0.0076992]
[1740397000052,0.208637,95860.0,95853.0,0.0076992]
[1740397000258,0.2858382,95863.0,95853.0,0.0046992]
[1740397000458,0.156487,95854.0,95853.0,0.0046992]
[1740397000707,0.156487,95854.0,95853.0,0.0016992]
[1740397000982,0.156487,95854.0,95853.0,0.0036992]
[1740397001372,0.156487,95854.0,95853.0,0.0016992]
[1740397001574,0.156487,95854.0,95853.0,0.0066992]
[1740397001960,0.156487,95854.0,95853.0,0.0046992]
[1740397002361,0.156487,95854.0,95853.0,0.0076992]
[1740397005234,0.208648,95856.0,95853.0,0.0076992]
[1740397005440,0.15,95877.0,95854.0,0.0804]
[1740397005739,0.208633,95862.0,95854.0,0.0804]
[1740397005912,0.00912,95869.0,95854.0,0.0804]
[1740397005913,0.156469,95866.0,95854.0,0.0804]
[1740397006124,0.00544438,95869.0,95856.0,0.0802]
[1740397006328,0.00544438,95869.0,95858.0,0.156481]
[1740397006528,0.15544438,95869.0,95859.0,0.0812]
[1740397006922,0.15544438,95869.0,95861.0,0.0812]
[1740397007156,0.15544438,95869.0,95861.0,0.18384569]
[1740397007491,0.00544438,95869.0,95861.0,0.18384569]
[1740397007690,0.156465,95868.0,95861.0,0.18384569]
[1740397008454,0.16190738,95869.0,95861.0,0.18384569]
[1740397010615,0.00544438,95869.0,95861.0,0.0822]
[1740397010835,0.156474,95862.0,95861.0,0.0812]
[1740397011041,0.00544438,95869.0,95855.0,0.0801]
[1740397011042,0.156484,95856.0,95855.0,0.0801]
[1740397011249,0.208637,95860.0,95853.0,0.0016992]
[1740397011402,0.156487,95854.0,95853.0,0.0016992]
[1740397012435,0.208648,95856.0,95855.0,0.003]
[1740397012436,0.156485,95856.0,95855.0,0.003]
[1740397014476,0.3515461,95865.0,95855.0,0.003]
[1740397014796,0.3515461,95865.0,95855.0,0.006]
[1740397015027,0.156484,95857.0,95855.0,0.006]
[1740397015196,0.3515461,95865.0,95855.0,0.006]
[1740397015404,0.156484,95856.0,95855.0,0.003]
[1740397015735,0.3515461,95865.0,95854.0,0.0016992]
[1740397015942,0.156484,95857.0,95854.0,0.0016992]
[1740397016301,0.20864,95859.0,95854.0,0.0016992]
[1740397016302,0.156484,95856.0,95854.0,0.0016992]
[1740397016501,0.156484,95857.0,95854.0,0.0016992]
[1740397016820,0.156484,95857.0,95855.0,0.003]
[1740397017248,0.156484,95856.0,95855.0,0.003]
[1740397017968,0.156484,95856.0,95855.0,0.006]
[1740397018166,0.156484,95856.0,95854.0,0.0016992]
[1740397018605,0.156484,95856.0,95855.0,0.003]
[1740397019174,0.156484,95856.0,95855.0,0.006]
[1740397019796,0.156484,95856.0,95855.0,0.003]
[1740397020630,0.156476,95861.0,95855.0,0.006]
[1740397020920,0.3515461,95865.0,95855.0,0.006]
[1740397020921,0.1429191,95865.0,95855.0,0.006]
[1740397021211,0.00544438,95869.0,95856.0,0.0767]
[1740397021649,0.00544438,95869.0,95857.0,0.10264569]
[1740397021860,0.156465,95868.0,95858.0,0.0766]
[1740397022081,0.156466,95867.0,95858.0,0.0766]
[1740397022282,0.156465,95868.0,95858.0,0.0766]
[1740397023129,0.21406238,95869.0,95858.0,0.0766]
[1740397023336,0.156473,95864.0,95858.0,0.0766]
[1740397023555,0.00544438,95869.0,95858.0,0.0766]
[1740397023556,0.15647,95865.0,95858.0,0.0766]
[1740397023734,0.156466,95867.0,95858.0,0.0766]
[1740397024175,0.21406238,95869.0,95858.0,0.0766]
[1740397024571,0.00544438,95869.0,95859.0,0.10264569]
[1740397024802,0.00544438,95869.0,95860.0,0.0781]
[1740397024982,0.00544438,95869.0,95861.0,0.10264569]
[1740397026073,0.156471,95865.0,95860.0,0.0781]
[1740397026328,0.00544438,95869.0,95860.0,0.0781]
[1740397026580,0.156476,95861.0,95860.0,0.0781]
[1740397027229,0.00544438,95869.0,95860.0,0.0781]
[1740397027443,0.156474,95863.0,95860.0,0.0781]
[1740397027643,0.156476,95861.0,95860.0,0.0781]
[1740397028006,0.156476,95861.0,95860.0,0.0791]
[1740397028200,0.156476,95861.0,95860.0,0.0781]
[1740397028841,0.156476,95861.0,95860.0,0.0791]
[1740397029569,0.156476,95861.0,95860.0,0.001]
[1740397030179,0.156476,95861.0,95860.0,0.002]
[1740397044296,0.156476,95861.0,95860.0,0.001]
[1740397046603,0.156476,95861.0,95860.0,0.002]
[1740397049695,0.156476,95861.0,95860.0,0.001]
[1740397049891,0.156476,95861.0,95860.0,0.002]
[1740397050775,0.156476,95861.0,95860.0,0.001]
[1740397050975,0.1573258,95861.0,95860.0,0.002]
[1740397053503,0.0008498,95861.0,95860.0,0.0832]
[1740397053723,0.0008498,95861.0,95860.0,0.1288]
[1740397054549,0.0008498,95861.0,95860.0,0.1278]
[1740397055877,0.0008498,95861.0,95860.0,0.1288]
[1740397056076,0.0008498,95861.0,95860.0,0.1278]
[1740397056219,0.0008498,95861.0,95860.0,0.1268]
[1740397056419,0.0008498,95861.0,95860.0,0.1298]
[1740397057124,0.0008498,95861.0,95860.0,0.1328]
[1740397065175,0.0008498,95861.0,95860.0,0.23544569]
[1740397065378,0.0008498,95861.0,95860.0,0.39192369]
[1740397066142,0.0008498,95861.0,95860.0,0.38592369]
[1740397066496,0.0008498,95861.0,95860.0,0.38992369]
[1740397066712,0.0008498,95861.0,95860.0,0.38792369]
[1740397066923,0.0008498,95861.0,95860.0,0.38592369]
[1740397067101,0.0008498,95861.0,95860.0,0.39692369]
[1740397067770,0.0008498,95861.0,95860.0,0.24044569]
[1740397078915,0.1573258,95861.0,95860.0,0.0922]
[1740397079538,0.0008498,95861.0,95860.0,0.0862]
[1740397079938,0.0008498,95861.0,95860.0,0.0852]
[1740397080136,0.0008498,95861.0,95860.0,0.0892]
[1740397081273,0.0008498,95861.0,95860.0,0.0852]
[1740397081414,0.0008498,95861.0,95860.0,0.0892]
[1740397090411,0.156471,95865.0,95860.0,0.0892]
[1740397090594,0.3523847,95870.0,95860.0,0.0892]
[1740397090789,0.156471,95865.0,95860.0,0.0892]
[1740397091370,0.156471,95865.0,95860.0,0.0852]
[1740397091580,0.36509,95867.0,95860.0,0.0812]
[1740397091785,0.156468,95867.0,95860.0,0.0842]
[1740397091985,0.156468,95866.0,95860.0,0.0832]
[1740397092685,0.156468,95866.0,95860.0,0.0812]
[1740397092885,0.156468,95866.0,95860.0,0.0852]
[1740397093095,0.156468,95866.0,95860.0,0.0832]
[1740397093337,0.156468,95866.0,95860.0,0.0812]
[1740397093728,0.208621,95868.0,95860.0,0.0832]
[1740397094364,0.1437687,95870.0,95860.0,0.0832]
[1740397094594,0.156476,95861.0,95860.0,0.0832]
[1740397094832,0.156476,95861.0,95860.0,0.002]
[1740397095034,0.208618,95869.0,95858.0,0.0016996]
[1740397095035,0.156479,95859.0,95858.0,0.0016996]
[1740397096751,0.156479,95859.0,95858.0,0.0056996]
[1740397098420,0.156479,95859.0,95858.0,0.0036996]
[1740397098636,0.156479,95859.0,95858.0,0.0016996]
[1740397098846,0.156479,95859.0,95858.0,0.0026996]
[1740397099051,0.156479,95859.0,95858.0,0.0036996]
[1740397108546,0.15974458,95859.0,95858.0,0.0036996]
[1740397114360,0.00326558,95859.0,95858.0,0.0036996]
[1740397114580,0.15974458,95859.0,95858.0,0.0036996]
[1740397114991,0.00326558,95859.0,95858.0,0.0036996]
[1740397116002,0.156477,95861.0,95858.0,0.0036996]
[1740397117120,0.156477,95861.0,95858.0,0.0026996]
[1740397117560,0.156476,95862.0,95858.0,0.0016996]
[1740397117766,0.0008498,95866.0,95865.0,0.23767]
[1740397118600,0.0008498,95866.0,95865.0,0.34031569]
[1740397119564,0.0008498,95866.0,95865.0,0.34231569]
[1740397120384,0.0008498,95866.0,95865.0,0.34031569]
[1740397120801,0.0008498,95866.0,95865.0,0.34531569]
[1740397121180,0.0008498,95866.0,95865.0,0.34331569]
[1740397121683,0.0008498,95866.0,95865.0,0.34631569]
[1740397123511,0.0008498,95866.0,95865.0,0.34031569]
[1740397123711,0.0008498,95866.0,95865.0,0.34331569]
[1740397123916,0.0008498,95866.0,95865.0,0.34731569]
[1740397124114,0.0008498,95866.0,95865.0,0.34431569]
[1740397124648,0.0008498,95866.0,95865.0,0.34831569]
[1740397125840,0.0008498,95866.0,95865.0,0.39731569]
[1740397132401,0.0008498,95866.0,95865.0,0.39901509]
[1740397149507,0.0008498,95866.0,95865.0,0.39501509]
[1740397149863,0.0008498,95866.0,95865.0,0.39801509]
[1740397150439,0.0008498,95866.0,95865.0,0.71941509]
[1740397150784,0.0008498,95866.0,95865.0,0.72641509]
[1740397151567,0.0008498,95866.0,95865.0,0.71941509]
[1740397151978,0.0008498,95866.0,95865.0,0.72641509]
[1740397152397,0.0008498,95866.0,95865.0,0.71941509]
[1740397152818,0.0008498,95866.0,95865.0,0.72641509]
[1740397166658,0.14935718,95893.0,95865.0,0.56994509]
[1740397166867,0.156427,95891.0,95873.0,0.156456]
[1740397167071,0.156427,95891.0,95874.0,0.10264569]
[1740397167455,0.156427,95891.0,95874.0,0.25910069]
[1740397167898,0.208565,95894.0,95874.0,0.25910069]
[1740397167899,0.156426,95892.0,95874.0,0.25910069]
[1740397170172,0.156426,95892.0,95876.0,0.156451]
[1740397170373,0.16748685,95892.0,95877.0,0.10264569]
[1740397171018,0.01106085,95892.0,95877.0,0.10264569]
[1740397171339,0.208569,95892.0,95877.0,0.10264569]
[1740397171541,0.156427,95891.0,95877.0,0.10264569]
[1740397173131,0.156427,95891.0,95877.0,0.25909469]
[1740397173896,0.16748015,95892.0,95877.0,0.25909469]
[1740397174100,0.156426,95892.0,95877.0,0.25909469]
[1740397174311,0.208566,95893.0,95877.0,0.10264569]
[1740397174474,0.208566,95893.0,95878.0,0.208598]
[1740397174695,0.156427,95892.0,95880.0,0.156445]
[1740397174865,0.156427,95892.0,95881.0,0.10264569]
[1740397175268,0.156427,95892.0,95881.0,0.25908869]
[1740397175466,0.16733175,95892.0,95881.0,0.10264569]
[1740397176588,0.01090675,95892.0,95881.0,0.10264569]
[1740397176770,0.156425,95893.0,95881.0,0.25908869]
[1740397178359,0.156426,95892.0,95881.0,0.25908869]
[1740397180292,0.21399966,95898.0,95882.0,0.156441]
[1740397180496,0.00544366,95898.0,95883.0,0.0776]
[1740397180693,0.00544366,95898.0,95888.0,0.15643]
[1740397181055,0.0008494,95893.0,95885.0,0.208581]
[1740397181274,0.0008494,95893.0,95886.0,0.10264569]
[1740397181688,0.0008494,95893.0,95886.0,0.31122469]
[1740397181887,0.0008494,95893.0,95892.0,0.156425]
[1740397182134,0.0008494,95893.0,95892.0,0.238025]
[1740397182337,0.0008494,95893.0,95892.0,0.0816]
[1740397184902,0.0008494,95893.0,95892.0,0.34267069]
[1740397185110,0.0008494,95893.0,95892.0,0.39357069]
[1740397186895,0.0008494,95893.0,95892.0,0.39157069]
[1740397187067,0.0008494,95893.0,95892.0,0.39357069]
[1740397187744,0.0008494,95893.0,95892.0,0.38957069]
[1740397187958,0.0008494,95893.0,95892.0,0.39757069]
[1740397188163,0.0008494,95893.0,95892.0,0.39557069]
[1740397188372,0.0008494,95893.0,95892.0,0.54557069]
[1740397188543,0.0008494,95893.0,95892.0,0.55157069]
[1740397189356,0.0008494,95893.0,95892.0,0.54557069]
[1740397189560,0.0008494,95893.0,95892.0,0.55257069]
[1740397189802,0.0008494,95893.0,95892.0,0.54657069]
[1740397190186,0.0008494,95893.0,95892.0,0.55357069]
[1740397191525,0.0008494,95893.0,95892.0,0.87497069]
[1740397194286,0.0008494,95893.0,95892.0,0.86797069]
[1740397194488,0.0008494,95893.0,95892.0,0.87551154]
[1740397195350,0.0008494,95893.0,95892.0,0.88251154]
[1740397195724,4e-07,95893.0,95892.0,0.88251154]
[1740397195931,4e-07,95893.0,95892.0,0.88951154]
[1740397196265,4e-07,95893.0,95892.0,0.88251154]
[1740397196490,4e-07,95893.0,95892.0,0.88951154]
[1740397196888,4e-07,95893.0,95892.0,0.88251154]
[1740397197051,4e-07,95893.0,95892.0,0.88951154]
[1740397197373,4e-07,95893.0,95892.0,0.89859154]
[1740397197570,4e-07,95893.0,95892.0,1.44459154]
[1740397197777,4e-07,95893.0,95892.0,1.46459154]
[1740397199246,4e-07,95893.0,95892.0,1.48459154]
[1740397200311,4e-07,95893.0,95892.0,1.47759154]
[1740397200918,4e-07,95893.0,95892.0,1.48459154]
[1740397201121,4e-07,95893.0,95892.0,1.47759154]
[1740397201290,4e-07,95893.0,95892.0,1.47059154]
[1740397201493,4e-07,95893.0,95892.0,1.50557895]
[1740397201894,0.00544233,95942.0,95900.0,0.02]
[1740397202116,0.01400284,95936.0,95928.0,0.234167]
[1740397202349,4.367e-05,95943.0,95928.0,0.33681269]
[1740397203175,0.00044316,95929.0,95928.0,0.33681269]
[1740397203968,0.00044316,95929.0,95928.0,0.34281269]
[1740397204362,0.00044316,95929.0,95928.0,0.33681269]
[1740397204789,0.00044316,95929.0,95928.0,0.34281269]
[1740397205168,0.00044316,95929.0,95928.0,0.34981269]
[1740397205432,0.1429191,95960.0,95928.0,0.19344569]
[1740397205758,0.156321,95956.0,95930.0,0.1429191]
[1740397205927,0.04543141,95958.0,95931.0,0.10264569]
[1740397206168,0.156324,95955.0,95944.0,0.15634]
[1740397206343,0.156324,95955.0,95945.0,0.25898469]
[1740397206539,0.156324,95955.0,95945.0,0.10264569]
[1740397206768,0.01360143,95955.0,95945.0,0.25898469]
[1740397206949,0.01360143,95955.0,95945.0,0.10264569]
[1740397207151,0.208426,95957.0,95945.0,0.10264569]
[1740397207327,0.156323,95955.0,95945.0,0.10264569]
[1740397207729,0.156322,95956.0,95945.0,0.25898469]
[1740397208055,0.156322,95956.0,95945.0,0.25998469]
[1740397208469,0.22228688,95957.0,95945.0,0.25998469]
[1740397208640,0.156321,95956.0,95945.0,0.10364569]
[1740397208841,0.156321,95956.0,95945.0,0.10464569]
[1740397209042,0.156321,95956.0,95945.0,0.26098469]
[1740397209265,0.156321,95956.0,95945.0,0.25898469]
[1740397209462,0.156324,95955.0,95945.0,0.10264569]
[1740397209695,0.156321,95956.0,95945.0,0.10264569]
[1740397209931,0.01386088,95957.0,95945.0,0.10264569]
[1740397210142,0.17018088,95957.0,95945.0,0.10264569]
[1740397210353,0.156322,95956.0,95945.0,0.10264569]
[1740397210797,0.156322,95956.0,95945.0,0.10364569]
[1740397211168,0.156322,95956.0,95945.0,0.10264569]
[1740397211372,0.156322,95956.0,95945.0,0.10364569]
[1740397211616,0.156323,95955.0,95945.0,0.10364569]
[1740397212236,0.156326,95954.0,95945.0,0.10364569]
[1740397212458,0.156323,95955.0,95945.0,0.10364569]
[1740397212629,0.156323,95955.0,95945.0,0.10264569]
[1740397213055,0.156323,95955.0,95945.0,0.10364569]
[1740397213377,0.156322,95956.0,95945.0,0.10364569]
[1740397213486,0.01397986,95957.0,95945.0,0.26098369]
[1740397213705,0.25385641,95958.0,95945.0,0.25998369]
[1740397213946,0.15632,95957.0,95945.0,0.25998369]
[1740397214165,0.156322,95956.0,95945.0,0.25998369]
[1740397214372,0.156322,95956.0,95945.0,0.10264569]
[1740397214891,0.17057042,95957.0,95945.0,0.10264569]
[1740397215111,0.01425042,95957.0,95945.0,0.10364569]
[1740397215332,0.156321,95956.0,95945.0,0.10364569]
[1740397215461,0.156321,95956.0,95945.0,0.10264569]
[1740397215674,0.1429191,95960.0,95945.0,0.10364569]
[1740397215870,0.208425,95958.0,95945.0,0.10364569]
[1740397216086,0.17038532,95958.0,95945.0,0.10264569]
[1740397216284,0.15632,95957.0,95945.0,0.10264569]
[1740397217221,0.15632,95957.0,95945.0,0.25898369]
[1740397217484,0.15632,95957.0,95946.0,0.156337]
[1740397217624,0.15632,95957.0,95946.0,0.25898269]
[1740397218367,0.1571695,95957.0,95946.0,0.25898269]
[1740397218565,0.0008495,95957.0,95946.0,0.10264569]
[1740397218974,0.1571705,95957.0,95946.0,0.10264569]
[1740397219175,0.156321,95956.0,95946.0,0.10264569]
[1740397219428,0.0008495,95957.0,95946.0,0.10264569]
[1740397220390,0.1571695,95957.0,95946.0,0.10264569]
[1740397221690,0.156323,95955.0,95946.0,0.10264569]
[1740397222685,0.0008495,95957.0,95946.0,0.10264569]
[1740397223108,0.156321,95956.0,95946.0,0.10264569]
[1740397223305,0.156321,95956.0,95946.0,0.10364569]
[1740397223518,0.2092775,95957.0,95946.0,0.10364569]
[1740397223831,0.156324,95955.0,95946.0,0.10464569]
[1740397224486,0.156322,95956.0,95946.0,0.10364569]
[1740397225345,0.2092775,95957.0,95946.0,0.10364569]
[1740397225543,0.156323,95956.0,95946.0,0.10264569]
[1740397225762,0.156325,95954.0,95946.0,0.10364569]
[1740397226109,0.156324,95955.0,95946.0,0.10364569]
[1740397226226,4e-05,95951.0,95946.0,0.10364569]
[1740397226746,4e-05,95951.0,95946.0,0.10264569]
[1740397226951,4e-05,95951.0,95946.0,0.10364569]
[1740397227502,0.156336,95947.0,95946.0,0.003]
[1740397227794,0.208446,95949.0,95946.0,0.003]
[1740397228048,0.156335,95948.0,95946.0,0.004]
[1740397228253,4e-05,95951.0,95946.0,0.004]
[1740397228461,4e-05,95951.0,95946.0,0.003]
[1740397228462,0.156331,95950.0,95946.0,0.003]
[1740397228944,0.156333,95949.0,95946.0,0.006]
[1740397229189,4e-05,95951.0,95946.0,0.006]
[1740397229390,0.156331,95950.0,95946.0,0.003]
[1740397229589,0.156331,95950.0,95946.0,0.002]
[1740397229800,0.156331,95950.0,95946.0,0.004]
[1740397229952,0.156331,95950.0,95946.0,0.002]
[1740397230360,0.156331,95950.0,95946.0,0.003]
[1740397230520,0.156331,95950.0,95946.0,0.002]
[1740397230726,0.156331,95950.0,95945.0,0.0016982]
[1740397230924,4e-05,95951.0,95946.0,0.001]
[1740397231236,0.156334,95949.0,95946.0,0.002]
[1740397231595,0.156371,95951.0,95946.0,0.001]
[1740397231760,0.156331,95950.0,95946.0,0.001]
[1740397232162,0.156371,95951.0,95946.0,0.001]
[1740397232370,4e-05,95951.0,95945.0,0.0016982]
[1740397232622,4e-05,95951.0,95946.0,0.002]
[1740397232827,4e-05,95951.0,95946.0,0.0851]
[1740397233186,4e-05,95951.0,95946.0,0.0861]
[1740397233392,4e-05,95951.0,95946.0,0.0851]
[1740397233647,0.156371,95951.0,95946.0,0.0851]
[1740397233771,0.156371,95951.0,95946.0,0.0841]
[1740397233973,0.208479,95951.0,95946.0,0.0841]
[1740397234172,4e-05,95951.0,95946.0,0.002]
[1740397234383,0.156336,95947.0,95946.0,0.002]
[1740397234595,0.306336,95947.0,95946.0,0.002]
[1740397235053,0.343036,95947.0,95946.0,0.002]
[1740397235293,0.343036,95947.0,95946.0,0.001]
[1740397235587,0.306337,95946.0,95945.0,0.0016982]
[1740397236950,0.15,95947.0,95945.0,0.0016982]
[1740397238165,0.306336,95947.0,95945.0,0.0016982]
[1740397238370,0.156337,95946.0,95945.0,0.0016982]
[1740397239190,0.156337,95946.0,95945.0,0.0026982]
[1740397239438,0.156337,95946.0,95945.0,0.0036982]
[1740397239566,0.15,95947.0,95945.0,0.0036982]
[1740397239999,0.156337,95946.0,95945.0,0.0046982]
[1740397240638,0.15,95947.0,95945.0,0.0036982]
[1740397240843,0.306336,95947.0,95945.0,0.0046982]
[1740397241015,0.15,95947.0,95945.0,0.0046982]
[1740397241220,0.15,95946.0,95945.0,0.0046982]
[1740397241418,0.15,95946.0,95945.0,0.0036982]
[1740397241818,0.15,95946.0,95945.0,0.0046982]
[1740397242228,0.15,95946.0,95945.0,0.0056982]
[1740397242413,0.15,95946.0,95945.0,0.0016982]
[1740397242768,0.15,95949.0,95945.0,0.0026982]
[1740397243378,0.15,95946.0,95945.0,0.0026982]
[1740397243522,0.15,95946.0,95945.0,0.0036982]
[1740397244633,0.15,95948.0,95945.0,0.0026982]
[1740397244866,0.15,95948.0,95945.0,0.0016982]
[1740397245439,4e-05,95951.0,95945.0,0.0016982]
[1740397245643,0.15637,95951.0,95945.0,0.0016982]
[1740397245887,0.15,95950.0,95945.0,0.0026982]
[1740397246211,4e-05,95951.0,95950.0,0.156331]
[1740397246775,4e-05,95951.0,95946.0,0.290749]
[1740397246985,4e-05,95951.0,95946.0,0.39339469]
[1740397247191,4e-05,95951.0,95947.0,0.156334]
[1740397247528,4e-05,95951.0,95946.0,0.18494569]
[1740397247735,4e-05,95951.0,95947.0,0.156336]
[1740397248358,4e-05,95951.0,95946.0,0.18694569]
[1740397248937,4e-05,95951.0,95947.0,0.002]